bitfinex/quotes_ETHUSD_20250724
["timestamp","ask_amount","ask_price","bid_price","bid_amount"]
[1753399445015,0.042,3712.9,3711.8,19.28909619]
[1753399447142,0.042,3712.9,3711.8,21.99686365]
[1753399447476,2.73531564,3712.9,3711.8,19.45575298]
[1753399447664,3.17751966,3712.8,3711.8,19.45575298]
[1753399447873,0.4841,3712.8,3711.8,19.45175298]
[1753399448033,2.6935664,3712.6,3711.8,19.45175298]
[1753399448234,2.69361883,3712.5,3711.8,14.82475298]
[1753399448433,3.17748611,3712.8,3711.8,14.82475298]
[1753399448434,2.69354531,3712.6,3711.8,14.82475298]
[1753399448765,0.96748444,3711.9,3710.9,7.31673782]
[1753399448936,0.96748444,3711.9,3710.8,0.4328]
[1753399448937,3.66158741,3711.9,3711.1,3.0]
[1753399449133,0.4841,3711.8,3711.1,3.0]
[1753399449334,0.4841,3711.8,3711.1,4.64894618]
[1753399449533,0.4841,3711.8,3711.2,4.19489462]
[1753399449840,0.4841,3711.8,3711.3,0.55]
[1753399451380,0.4841,3711.7,3711.3,0.55]
[1753399451586,0.4841,3711.7,3711.0,3.12748256]
[1753399451746,0.4841,3711.6,3711.1,0.55]
[1753399452247,0.4841,3711.6,3711.1,3.24461356]
[1753399452440,0.4841,3711.6,3711.1,0.55]
[1753399452879,0.4841,3711.6,3711.1,6.24460871]
[1753399453674,0.4841,3711.6,3711.1,0.55]
[1753399454069,3.62082509,3711.6,3711.1,0.55]
[1753399454272,0.9265,3711.5,3711.0,0.55]
[1753399454488,0.9265,3711.4,3711.0,0.55]
[1753399454782,3.17826122,3711.8,3711.4,0.1344]
[1753399454983,2.69418555,3711.7,3711.0,3.24463823]
[1753399455151,2.69418555,3711.7,3711.0,0.55]
[1753399455353,2.69418555,3711.7,3711.6,0.1344]
[1753399455774,3.62088555,3711.7,3711.6,0.1344]
[1753399457095,3.62288555,3711.7,3711.6,0.1344]
[1753399457973,2.69454253,3711.3,3710.7,3.55]
[1753399458151,0.8,3711.2,3710.7,3.55]
[1753399458564,0.9267,3711.1,3710.7,3.55]
[1753399458776,0.9267,3711.1,3711.0,0.1344]
[1753399459183,3.62131884,3711.1,3711.0,0.1344]
[1753399459687,3.62131884,3711.1,3710.9,0.1344]
[1753399459688,2.69469145,3711.0,3710.9,0.1344]
[1753399459888,3.62139145,3711.0,3710.9,0.1344]
[1753399464690,0.8,3711.2,3710.9,0.1344]
[1753399464862,4.564,3711.1,3710.9,0.1344]
[1753399465185,4.564,3711.1,3710.7,2.69490315]
[1753399465370,4.564,3711.1,3711.0,0.1344]
[1753399466695,8.99117494,3711.1,3711.0,0.1344]
[1753399467562,6.2845561,3711.1,3711.0,0.1344]
[1753399467762,5.4787,3711.1,3711.0,0.1344]
[1753399468182,8.17331884,3711.1,3711.0,0.1344]
[1753399469704,5.4787,3711.1,3711.0,0.1344]
[1753399470206,4.538,3711.1,3711.0,0.1344]
[1753399470570,4.537,3711.3,3711.0,0.5753]
[1753399470791,4.537,3711.3,3711.1,0.4409]
[1753399471012,4.537,3711.3,3711.2,0.1344]
[1753399471371,4.537,3711.3,3711.2,2.82894623]
[1753399474009,0.002,3711.7,3711.2,3.5405]
[1753399474314,4.527,3711.7,3711.6,0.1344]
[1753399476314,5.4537,3711.7,3711.6,0.1344]
[1753399476524,2.69440103,3711.4,3710.5,2.69500101]
[1753399476703,2.69455487,3711.2,3710.5,2.69500904]
[1753399476905,5.4427,3711.3,3711.2,0.1344]
[1753399476906,7.68297607,3711.3,3711.2,0.1344]
[1753399477411,7.68297607,3711.3,3710.6,2.69493022]
[1753399477412,2.69467505,3711.1,3710.3,3.0]
[1753399477583,4.514,3711.0,3710.4,2.69507432]
[1753399477922,5.4407,3711.0,3710.5,2.69504711]
[1753399478108,4.514,3711.0,3710.9,0.1344]
[1753399478681,5.4407,3711.0,3710.9,0.1344]
[1753399481938,8.13539145,3711.0,3710.9,0.1344]
[1753399483318,5.4407,3711.0,3710.9,0.1344]
[1753399487912,0.7966,3711.5,3710.9,5.36494621]
[1753399488138,4.478,3711.4,3711.0,0.53649462]
[1753399488517,4.478,3711.4,3711.3,0.1344]
[1753399488939,2.69620351,3711.7,3711.3,0.1344]
[1753399489114,0.002,3711.7,3711.3,0.16134473]
[1753399489430,4.475,3711.6,3711.4,2.69438314]
[1753399489841,4.475,3711.6,3711.5,2.82872843]
[1753399490913,4.475,3711.6,3711.5,0.1344]
[1753399491120,4.475,3711.6,3711.5,2.82872843]
[1753399493223,4.475,3711.6,3711.5,0.1344]
[1753399493427,4.475,3711.6,3711.5,2.82872843]
[1753399494769,4.475,3711.6,3711.5,0.1344]
[1753399496240,4.475,3711.6,3711.5,2.82872843]
[1753399496444,4.475,3711.6,3711.5,0.1344]
[1753399498744,5.4155,3711.6,3710.8,0.55]
[1753399498951,4.9628,3711.6,3711.4,0.1344]
[1753399499265,0.9405,3711.5,3711.4,0.1344]
[1753399499938,1.7276,3711.5,3711.4,0.1344]
[1753399500340,1.7276,3711.5,3711.3,0.1344]
[1753399500540,4.9308,3711.4,3711.3,0.1344]
[1753399500840,5.3835,3711.4,3711.2,0.1344]
[1753399501174,0.9405,3711.3,3711.2,0.1344]
[1753399502570,0.9405,3711.3,3710.9,0.1354]
[1753399502868,5.3735,3711.2,3710.9,0.1354]
[1753399503079,4.433,3711.2,3710.9,0.1354]
[1753399503375,0.9405,3711.1,3710.9,0.1354]
[1753399503539,4.433,3711.0,3710.9,0.1354]
[1753399503736,5.3735,3711.0,3710.9,0.1354]
[1753399503940,4.43,3711.0,3710.9,2.83016407]
[1753399504246,0.4527,3711.3,3711.2,3.24454623]
[1753399504247,4.43,3711.3,3711.2,3.24454623]
[1753399504444,0.002,3711.6,3711.5,2.69432843]
[1753399504785,4.43,3711.6,3711.5,2.82872843]
[1753399505681,4.43,3711.6,3711.5,0.1344]
[1753399507332,4.43,3711.6,3711.5,2.82872843]
[1753399507632,6.1706,3711.6,3711.5,0.1344]
[1753399507774,6.79195844,3711.6,3710.9,0.001]
[1753399507975,2.69445797,3711.4,3711.0,0.1344]
[1753399508211,4.424,3711.3,3711.0,0.1344]
[1753399508517,5.3645,3711.3,3711.0,0.1344]
[1753399508721,0.9405,3711.2,3711.0,0.1344]
[1753399509092,0.4878,3711.1,3711.0,0.1344]
[1753399509822,4.424,3711.3,3711.0,0.1344]
[1753399510006,0.4878,3711.2,3711.0,0.1344]
[1753399510976,4.424,3711.3,3711.1,2.69461884]
[1753399511176,4.424,3711.3,3711.0,2.82908328]
[1753399511435,0.1344,3711.5,3711.0,2.82908328]
[1753399511436,0.1344,3711.5,3711.1,0.4061]
[1753399511744,4.416,3711.4,3711.2,0.1344]
[1753399512548,4.9038,3711.4,3711.2,2.82894538]
[1753399513208,4.9038,3711.4,3711.2,0.1344]
[1753399513816,0.9405,3711.3,3710.9,0.001]
[1753399514313,0.9405,3711.2,3710.9,0.1354]
[1753399514509,2.82874523,3711.5,3710.9,0.1354]
[1753399514510,2.8287296,3711.5,3710.9,2.83014565]
[1753399514714,0.002,3711.6,3711.5,3.65042843]
[1753399515163,0.002,3711.6,3711.5,4.57622843]
[1753399517658,0.002,3711.6,3711.5,3.10042843]
[1753399517816,0.002,3711.6,3711.5,2.69432843]
[1753399519147,0.002,3711.6,3711.5,3.25123198]
[1753399521560,0.002,3711.6,3711.2,0.4061]
[1753399521770,0.002,3711.6,3711.1,10.92369677]
[1753399521771,0.002,3711.6,3711.5,2.69432843]
[1753399523739,0.002,3711.6,3711.5,3.12542843]
[1753399523925,0.002,3711.6,3711.5,3.59862843]
[1753399524122,0.002,3711.6,3711.5,8.82772849]
[1753399524325,0.002,3711.6,3711.5,9.9826372]
[1753399524540,0.002,3711.6,3711.5,13.9387372]
[1753399524863,0.002,3711.6,3711.5,14.0731372]
[1753399527585,0.002,3711.6,3711.5,2.82872843]
[1753399527753,0.457,3711.6,3711.5,2.82872843]
[1753399528152,0.457,3711.6,3711.5,0.1344]
[1753399529100,0.002,3711.6,3711.5,0.1344]
[1753399529264,0.457,3711.6,3711.5,0.1344]
[1753399529585,0.002,3711.6,3711.5,3.66161303]
[1753399529888,0.002,3711.6,3711.5,4.36441303]
[1753399530406,0.002,3711.6,3711.5,4.83761303]
[1753399537400,0.002,3711.6,3711.5,4.36441303]
[1753399537969,0.002,3711.6,3711.5,7.83761303]
[1753399538265,0.002,3711.6,3711.5,12.24761303]
[1753399538597,0.002,3711.6,3711.5,7.83761303]
[1753399538798,0.002,3711.6,3711.5,11.34331303]
[1753399538983,0.002,3711.6,3711.5,11.77441303]
[1753399539369,0.002,3711.6,3711.5,12.24761303]
[1753399539564,0.002,3711.6,3711.5,8.07061303]
[1753399539771,0.002,3711.6,3711.5,7.23772843]
[1753399540018,0.457,3711.6,3711.5,2.82872843]
[1753399541885,0.002,3711.6,3711.5,2.82872843]
[1753399542977,0.7925,3711.6,3709.5,0.001]
[1753399543177,0.7925,3711.6,3709.1,0.041]
[1753399543178,2.69599913,3709.2,3709.1,0.041]
[1753399543423,6.24599913,3709.2,3709.1,0.041]
[1753399543573,3.1344,3709.2,3709.1,0.041]
[1753399543910,3.0,3710.5,3709.1,3.71140612]
[1753399544112,2.69599913,3709.2,3709.1,0.041]
[1753399544284,2.99765144,3709.2,3709.1,0.041]
[1753399544487,2.43331811,3709.2,3709.1,0.1762]
[1753399544693,5.12931724,3709.2,3709.1,0.1762]
[1753399544893,5.70492287,3709.2,3709.1,0.1762]
[1753399545095,5.70492287,3709.2,3708.3,0.001]
[1753399545096,2.69658073,3708.4,3708.3,0.001]
[1753399545322,5.56829417,3708.4,3708.3,0.001]
[1753399545508,2.69658073,3708.4,3708.3,0.001]
[1753399546304,5.69658073,3708.4,3708.3,0.001]
[1753399549112,2.69658073,3708.4,3708.3,0.001]
[1753399549315,7.25658073,3708.4,3708.3,0.001]
[1753399549983,7.50428446,3708.4,3708.3,0.001]
[1753399550182,7.25658073,3708.4,3708.3,0.001]
[1753399550383,7.50409689,3708.4,3708.3,0.001]
[1753399550982,7.25658073,3708.4,3708.3,0.001]
[1753399551183,7.50409421,3708.4,3708.3,0.001]
[1753399552210,7.25658073,3708.4,3708.3,0.001]
[1753399552524,7.5037957,3708.4,3708.3,0.001]
[1753399553325,11.2555957,3708.4,3708.3,0.001]
[1753399553619,11.63787709,3708.4,3708.3,0.001]
[1753399556221,11.63772348,3708.4,3708.3,0.001]
[1753399557317,12.20669248,3708.4,3708.3,0.001]
[1753399560114,11.9597647,3708.4,3708.3,0.001]
[1753399561055,11.71254973,3708.4,3708.3,0.001]
[1753399561360,11.95935272,3708.4,3708.3,0.001]
[1753399561731,12.20615854,3708.4,3708.3,0.001]
[1753399561933,13.62803064,3708.4,3708.3,0.001]
[1753399562117,13.62804224,3708.4,3708.3,0.001]
[1753399563146,2.69672617,3708.2,3708.1,0.04]
[1753399563454,11.02549816,3708.2,3708.1,0.04]
[1753399564240,11.27262569,3708.2,3708.1,0.04]
[1753399565356,2.69708984,3707.7,3707.6,0.001]
[1753399565524,8.0130241,3707.7,3707.6,0.001]
[1753399566423,9.43659897,3707.7,3707.6,0.001]
[1753399566838,8.0130241,3707.7,3707.6,0.001]
[1753399567034,9.43659897,3707.7,3707.6,0.001]
[1753399567574,6.73950057,3707.7,3707.6,0.9103]
[1753399567760,5.31393426,3707.7,3707.6,1.0455]
[1753399568076,5.30793426,3707.7,3707.6,1.0455]
[1753399568243,6.73350057,3707.7,3707.6,1.0455]
[1753399568444,8.25288117,3707.7,3707.6,1.0455]
[1753399569046,8.25288117,3707.7,3707.6,0.5868]
[1753399569472,8.25288117,3707.7,3707.6,0.41138317]
[1753399569659,5.55579133,3707.7,3707.6,0.41138317]
[1753399570062,5.30793426,3707.7,3707.6,0.41138317]
[1753399570268,5.55652457,3707.7,3707.6,0.87008317]
[1753399570439,5.30793426,3707.7,3707.6,0.87008317]
[1753399570639,5.55652455,3707.7,3707.6,0.87008317]
[1753399570877,5.30793426,3707.7,3707.6,0.5939]
[1753399571073,0.81593426,3707.7,3707.6,3.62028252]
[1753399571278,5.29993426,3707.7,3707.6,4.38448252]
[1753399571480,5.29993426,3707.7,3707.6,4.83508252]
[1753399572784,5.29993426,3707.7,3707.6,2.13791994]
[1753399572944,5.29993426,3707.7,3707.6,0.1352]
[1753399573143,5.29993426,3707.7,3707.6,0.5858]
[1753399573375,5.29993426,3707.7,3707.6,0.45789419]
[1753399574377,7.22520803,3707.7,3707.6,0.45789419]
[1753399574879,5.29993426,3707.7,3707.6,0.45789419]
[1753399575585,7.22520803,3707.7,3707.6,0.1352]
[1753399576077,7.22520803,3707.7,3707.6,0.6062]
[1753399576572,7.37558934,3707.7,3707.6,0.6062]
[1753399576977,0.81593426,3707.7,3707.6,3.63371086]
[1753399577168,0.81593426,3707.7,3707.6,4.45491086]
[1753399577169,5.28393426,3707.7,3707.6,4.45491086]
[1753399577364,5.28393426,3707.7,3707.6,4.89591086]
[1753399578146,6.72737797,3707.7,3707.6,4.89591086]
[1753399578347,6.48041271,3707.7,3707.6,4.89591086]
[1753399578949,1.25993036,3709.1,3707.7,0.7927]
[1753399579146,0.002,3710.6,3709.8,2.6955631]
[1753399579347,0.002,3710.6,3709.8,6.72823385]
[1753399579348,0.29244541,3709.9,3709.8,6.72823385]
[1753399579553,0.042,3709.9,3709.8,6.72823385]
[1753399580163,0.042,3709.9,3709.8,3.6075631]
[1753399580585,0.042,3709.9,3709.8,9.93333766]
[1753399581191,0.042,3709.9,3709.8,4.69258064]
[1753399582602,0.042,3709.9,3709.8,5.44768064]
[1753399583168,0.042,3709.9,3709.8,5.69919652]
[1753399585267,0.042,3709.9,3709.8,3.78058064]
[1753399585470,6.2869,3709.9,3708.0,1.2382]
[1753399585765,0.0269558,3709.8,3709.0,2.69610216]
[1753399586077,4.528,3709.7,3709.0,0.441]
[1753399586286,4.528,3709.7,3709.0,0.82878932]
[1753399586473,4.528,3709.7,3709.1,2.69607182]
[1753399586710,4.528,3709.7,3709.1,2.69604266]
[1753399587088,4.527,3709.6,3709.1,2.69604266]
[1753399587323,4.527,3709.6,3709.2,2.69599901]
[1753399587506,4.527,3709.6,3709.0,2.6961057]
[1753399587713,4.527,3709.6,3709.1,2.69605755]
[1753399587921,4.527,3709.6,3709.0,3.28247735]
[1753399588110,4.527,3709.6,3709.0,1.02734019]
[1753399588315,4.527,3709.6,3709.3,2.69586365]
[1753399588515,4.527,3709.6,3709.2,2.69598318]
[1753399588892,4.527,3709.6,3709.0,2.69612475]
[1753399589126,4.527,3709.6,3709.5,0.1344]
[1753399594440,2.69583311,3709.5,3708.5,3.13748628]
[1753399594645,4.9674,3709.6,3709.2,0.1344]
[1753399594844,0.7895558,3709.4,3709.2,0.1344]
[1753399595045,7.19592645,3709.3,3709.2,0.1344]
[1753399595252,7.63632645,3709.3,3709.2,0.1344]
[1753399595749,7.19592645,3709.3,3709.2,0.1344]
[1753399598512,7.18692645,3709.3,3709.2,0.1344]
[1753399599653,4.9314,3709.3,3708.2,0.7672]
[1753399599835,2.69633984,3708.8,3708.7,0.1352]
[1753399600013,7.17933984,3708.8,3708.7,0.1352]
[1753399600427,4.483,3708.8,3708.7,0.1352]
[1753399600743,7.1792899,3708.8,3708.7,0.1352]
[1753399602744,4.483,3708.8,3708.7,0.1352]
[1753399602914,7.1792899,3708.8,3708.7,0.1352]
[1753399603114,7.1792899,3708.8,3708.1,0.441]
[1753399603115,4.9234,3708.8,3708.1,0.441]
[1753399603334,4.9234,3708.8,3708.6,0.1352]
[1753399603539,2.69663719,3708.4,3707.8,0.812]
[1753399603735,2.69663719,3708.4,3708.3,0.1352]
[1753399603938,7.16763719,3708.4,3708.3,0.1352]
[1753399604256,1.3417,3708.3,3706.7,0.001]
[1753399604560,0.1352,3707.7,3707.1,0.1352]
[1753399604710,4.486,3707.6,3707.0,2.69753967]
[1753399604918,4.486,3707.5,3707.3,0.1352]
[1753399606441,4.48,3707.4,3707.3,0.1352]
[1753399606643,4.48,3707.4,3707.3,0.28610743]
[1753399608152,4.48,3707.4,3707.3,0.73138048]
[1753399609280,4.48,3707.4,3707.3,0.28608048]
[1753399609770,4.48,3707.4,3707.3,0.28599791]
[1753399610066,4.48,3707.4,3707.3,0.28699791]
[1753399611667,2.69696122,3707.9,3707.3,0.28699791]
[1753399611847,4.467,3707.8,3707.4,0.15079791]
[1753399612048,4.467,3707.8,3707.5,0.28599791]
[1753399612363,7.16403256,3707.8,3707.6,0.15079791]
[1753399612549,7.16403256,3707.8,3707.7,0.15079791]
[1753399614072,7.16403256,3707.8,3707.7,0.15063641]
[1753399615143,7.61763256,3707.8,3707.7,0.15063641]
[1753399615349,7.16403256,3707.8,3707.7,0.15063641]
[1753399616188,7.97223256,3707.8,3707.7,0.15063641]
[1753399616367,11.56433256,3707.8,3707.7,0.15063641]
[1753399616682,11.91893256,3707.8,3707.7,0.15063641]
[1753399616879,12.46893256,3707.8,3707.7,0.15063641]
[1753399617174,17.71177589,3707.8,3707.7,0.15063641]
[1753399617397,2.69730808,3707.4,3707.3,0.001]
[1753399617546,7.17326388,3707.4,3707.3,0.15153769]
[1753399617746,8.08970808,3707.4,3707.3,0.15153769]
[1753399618480,8.86760808,3707.4,3707.3,0.15153769]
[1753399621664,8.51300808,3707.4,3707.3,0.15153769]
[1753399621970,8.86760808,3707.4,3707.3,0.15153769]
[1753399623174,11.86760808,3707.4,3707.3,0.15153769]
[1753399626720,11.85260808,3707.4,3707.3,0.15153769]
[1753399627490,11.85260808,3707.4,3707.3,0.15182418]
[1753399629550,12.40260808,3707.4,3707.3,0.15182418]
[1753399629896,3.24759913,3707.0,3706.9,0.001]
[1753399630248,11.66655493,3707.0,3706.9,0.15193625]
[1753399630543,12.44779913,3707.0,3706.9,0.15193625]
[1753399632638,7.0548719,3706.9,3706.8,0.001]
[1753399632844,11.9424719,3706.9,3706.8,0.001]
[1753399633134,12.2970719,3706.9,3706.8,0.001]
[1753399636843,10.9388719,3706.9,3706.8,0.001]
[1753399638010,6.5048719,3706.9,3706.8,0.001]
[1753399638215,10.9388719,3706.9,3706.8,0.001]
[1753399640348,7.1316719,3706.9,3706.8,0.001]
[1753399641136,10.9428719,3706.9,3706.8,0.001]
[1753399641891,12.3085719,3706.9,3706.8,0.001]
[1753399642913,7.0633719,3706.9,3706.8,0.001]
[1753399643215,11.4973719,3706.9,3706.8,0.001]
[1753399643421,12.3085719,3706.9,3706.8,0.001]
[1753399644404,12.3085719,3706.9,3706.8,1e-08]
[1753399644603,11.4973719,3706.9,3706.8,1e-08]
[1753399644846,7.05434468,3706.8,3706.7,1e-08]
[1753399645007,8.00074468,3706.8,3706.7,1e-08]
[1753399647364,15.02174468,3706.8,3706.7,1e-08]
[1753399648815,2.841,3705.8,3703.3,4.17369969]
[1753399649015,5.24484857,3704.7,3703.4,0.44236997]
[1753399649240,0.1352,3703.8,3703.5,0.4393]
[1753399649460,0.9046,3704.7,3703.0,0.4595]
[1753399649461,3.0,3703.6,3703.0,0.4595]
[1753399649763,4.5682,3703.5,3703.2,0.8988]
[1753399649947,4.5682,3703.5,3703.0,0.8128]
[1753399649948,2.70036724,3703.2,3703.0,0.8128]
[1753399650266,7.26856724,3703.2,3702.7,0.004]
[1753399650563,11.57816724,3703.2,3702.7,0.004]
[1753399650744,16.82301581,3703.2,3702.7,0.004]
[1753399650917,16.68781581,3703.2,3702.7,0.004]
[1753399651252,17.14441581,3703.2,3702.7,0.004]
[1753399651451,17.49901581,3703.2,3702.7,0.004]
[1753399652019,17.49901581,3703.2,3703.1,1e-08]
[1753399652216,3.25065896,3702.8,3702.7,1e-08]
[1753399652440,16.73596333,3702.8,3702.7,1e-08]
[1753399652640,13.08720753,3702.8,3702.7,1e-08]
[1753399652829,17.52020753,3702.8,3702.7,1e-08]
[1753399653030,7.48775896,3702.8,3702.7,1e-08]
[1753399653234,20.26706767,3702.8,3702.7,1e-08]
[1753399654823,20.26706767,3702.8,3700.7,1.7719]
[1753399654824,2.70206194,3700.9,3700.7,1.7719]
[1753399655019,10.16307426,3700.8,3700.7,1.3124]
[1753399655223,10.16307426,3700.8,3700.7,0.499]
[1753399655224,10.13611846,3700.8,3700.7,0.499]
[1753399656025,2.70262803,3700.2,3699.9,0.4595]
[1753399656225,3.55,3700.7,3699.6,0.4393]
[1753399656226,3.0,3700.0,3699.6,0.4393]
[1753399656563,4.464,3699.9,3699.7,0.8988]
[1753399656778,0.0269558,3699.8,3699.3,2.70321412]
[1753399657006,0.0269558,3700.4,3699.8,0.8988]
[1753399657157,0.0269558,3701.1,3699.9,0.8988]
[1753399657464,2.70228756,3700.6,3700.0,0.4393]
[1753399657667,3.0,3700.4,3700.0,0.4393]
[1753399657886,4.469,3700.3,3700.0,0.4393]
[1753399658054,4.469,3700.2,3700.1,0.8988]
[1753399658254,4.469,3700.2,3699.7,0.8988]
[1753399658255,3.0,3700.1,3699.7,0.8988]
[1753399658483,4.4939558,3700.0,3699.5,0.7835]
[1753399658687,4.4939558,3700.0,3699.2,1.8259999]
[1753399658688,3.0,3699.9,3699.2,1.8259999]
[1753399658894,2.70302837,3699.6,3699.2,0.4393]
[1753399659200,4.474,3699.5,3699.3,0.8988]
[1753399659499,4.474,3699.5,3699.4,3.60194104]
[1753399659661,2.70235377,3700.5,3699.6,2.70293701]
[1753399659860,0.4566,3700.9,3699.4,3.60194104]
[1753399659861,4.474,3700.4,3699.8,2.7028488]
[1753399660076,4.474,3700.3,3700.2,2.70255661]
[1753399660391,4.473,3700.3,3700.2,3.60135661]
[1753399661100,4.473,3700.3,3700.2,0.8988]
[1753399661497,4.473,3700.3,3700.2,3.60135661]
[1753399662009,4.473,3700.3,3700.2,0.8988]
[1753399662980,4.4999558,3700.3,3699.8,0.8988]
[1753399663181,4.4999558,3700.3,3699.8,0.4393]
[1753399663387,0.1352,3699.9,3699.7,0.758]
[1753399663597,4.466,3699.8,3699.7,0.758]
[1753399664087,4.466,3699.8,3699.7,1.6568]
[1753399664614,4.466,3699.8,3699.7,4.35972185]
[1753399664921,2.70216938,3700.8,3700.0,2.7027027]
[1753399665125,2.70216938,3700.8,3700.1,0.8988]
[1753399665126,0.1352,3700.3,3700.1,0.8988]
[1753399665282,2.39136673,3705.3,3704.6,2.69934675]
[1753399665482,0.4602,3706.7,3704.8,5.69920103]
[1753399665684,0.4602,3706.7,3705.1,7.99070871]
[1753399665924,5.16099273,3706.6,3705.5,2.69868503]
[1753399666095,5.16099273,3706.6,3705.2,3.68922043]
[1753399666302,5.16099273,3706.6,3706.1,2.69823678]
[1753399666483,5.16099273,3706.6,3704.9,3.0]
[1753399666484,0.02699273,3706.6,3705.0,2.69905533]
[1753399666689,0.02699273,3706.6,3705.7,2.69854247]
[1753399666936,3.02699273,3706.8,3706.1,2.69823933]
[1753399667106,5.15,3706.7,3705.0,0.02699055]
[1753399667310,0.02699273,3706.6,3706.1,2.69824261]
[1753399667631,5.15,3706.7,3705.5,0.0138]
[1753399667787,0.02699273,3706.6,3705.5,0.0138]
[1753399668403,5.143,3706.5,3705.6,0.7606]
[1753399668932,0.02699273,3706.4,3705.6,0.7606]
[1753399669282,5.143,3706.5,3705.6,0.7606]
[1753399669505,7.84098422,3706.5,3705.6,0.7744]
[1753399669704,5.143,3706.5,3705.6,0.7606]
[1753399669952,2.69813388,3706.3,3705.6,0.7606]
[1753399670135,0.02699273,3706.2,3705.6,0.7606]
[1753399670311,2.69825422,3706.1,3705.6,0.7606]
[1753399670512,2.69839984,3705.9,3705.0,0.8276]
[1753399670712,0.02699273,3705.8,3705.0,0.8276]
[1753399670949,0.02699273,3705.8,3704.5,2.69939768]
[1753399670950,0.02699273,3705.8,3704.3,0.0138]
[1753399671112,0.48719273,3705.8,3704.5,0.8276]
[1753399671309,5.121,3705.9,3704.8,2.69918631]
[1753399671623,5.121,3705.9,3704.9,0.0138]
[1753399671828,5.121,3705.9,3705.0,2.69898486]
[1753399672023,7.81940116,3705.9,3705.0,2.69898486]
[1753399672324,0.48719273,3705.8,3704.5,0.8276]
[1753399672523,2.69892186,3705.2,3704.5,0.8276]
[1753399673134,7.80992186,3705.2,3704.5,0.8276]
[1753399673342,5.111,3705.2,3704.5,0.8276]
[1753399673541,5.111,3705.2,3704.7,2.69922832]
[1753399674517,5.111,3705.2,3704.6,0.0138]
[1753399674731,0.02699273,3705.1,3704.5,0.8276]
[1753399675127,0.02699273,3705.1,3704.0,0.0138]
[1753399675128,2.69920385,3704.8,3704.1,3.0]
[1753399675351,0.02699273,3704.7,3704.1,2.69969644]
[1753399675517,0.02699273,3704.8,3704.6,0.1352]
[1753399675851,2.72620096,3704.8,3704.6,0.1352]
[1753399676218,2.72619516,3704.8,3704.6,0.1352]
[1753399676412,0.02699273,3704.8,3704.6,0.1352]
[1753399676955,5.085,3704.7,3704.0,0.8276]
[1753399677153,0.02699273,3704.6,3704.3,0.1352]
[1753399678455,0.02699273,3704.6,3704.0,0.8276]
[1753399678456,2.69945418,3704.5,3704.0,0.8276]
[1753399678617,2.69945418,3704.5,3703.0,9.83401605]
[1753399678618,0.02699273,3704.4,3704.2,0.1352]
[1753399678826,0.48719273,3704.4,3704.1,0.1352]
[1753399679015,2.72649466,3704.4,3704.1,0.1352]
[1753399679224,3.18669466,3704.4,3704.1,0.1352]
[1753399679829,2.69962369,3704.3,3704.1,0.1352]
[1753399680055,5.08399273,3704.2,3704.1,0.1352]
[1753399680243,7.78363097,3704.2,3704.1,0.1352]
[1753399680450,7.75663824,3704.2,3704.1,0.1352]
[1753399681483,7.75663824,3704.2,3703.5,0.8276]
[1753399681484,2.69987401,3703.9,3703.5,0.8276]
[1753399681646,5.048,3703.8,3703.5,0.8276]
[1753399682027,5.048,3703.8,3703.7,0.1352]
[1753399682232,7.7479298,3703.8,3703.7,0.1352]
[1753399682652,5.048,3703.8,3703.7,0.1352]
[1753399683134,5.07499273,3703.8,3703.7,0.1352]
[1753399683860,5.048,3703.8,3703.7,2.8352027]
[1753399684036,5.048,3703.8,3703.7,0.1352]
[1753399685483,5.5082,3703.8,3703.0,7.13352528]
[1753399685794,2.70030516,3703.3,3703.0,7.13352528]
[1753399685955,5.022,3703.2,3703.0,0.001]
[1753399686343,5.022,3703.2,3703.1,0.4402]
[1753399687105,4.2621,3704.2,3703.1,0.4402]
[1753399687267,2.69979669,3704.0,3703.1,3.15483762]
[1753399687471,2.69979669,3704.0,3703.4,2.70021429]
[1753399687671,5.015,3704.1,3703.0,0.001]
[1753399687672,2.70020215,3703.5,3703.0,0.001]
[1753399687844,5.008,3703.4,3703.0,0.001]
[1753399688047,5.008,3703.4,3703.0,0.4412]
[1753399688387,2.70034648,3703.3,3703.0,0.001]
[1753399688688,5.4682,3703.4,3703.0,0.001]
[1753399688891,2.72729239,3703.3,3703.0,0.001]
[1753399689093,2.70037175,3703.2,3703.0,0.001]
[1753399689257,2.7274329,3703.1,3703.0,0.001]
[1753399689454,3.16064017,3703.1,3703.0,0.001]
[1753399689659,3.59234017,3703.1,3703.0,0.001]
[1753399690089,0.02699273,3703.2,3703.0,0.001]
[1753399690358,5.008,3703.4,3703.0,0.001]
[1753399690780,5.4682,3703.4,3703.0,0.001]
[1753399690977,5.008,3703.4,3703.0,0.001]
[1753399691194,2.70040826,3703.2,3703.0,0.001]
[1753399691366,0.8919,3703.3,3703.0,0.001]
[1753399691691,3.16064017,3703.1,3703.0,0.001]
[1753399692899,5.008,3703.4,3703.0,0.001]
[1753399693258,3.16054848,3703.3,3703.0,0.001]
[1753399693463,0.4602,3703.3,3703.0,0.001]
[1753399693697,0.4602,3703.2,3703.0,0.001]
[1753399693858,4.99899273,3703.1,3703.0,0.001]
[1753399694197,5.45919273,3703.1,3703.0,0.001]
[1753399694553,8.1596329,3703.1,3703.0,0.001]
[1753399694758,5.4322,3703.1,3703.0,0.001]
[1753399694961,4.972,3703.1,3703.0,0.001]
[1753399696803,8.13354017,3703.1,3703.0,0.001]
[1753399697008,5.4331,3703.1,3703.0,0.001]
[1753399697516,8.13354017,3703.1,3703.0,0.001]
[1753399697974,8.57884017,3703.1,3703.0,0.001]
[1753399698176,8.71404017,3703.1,3703.0,0.001]
[1753399698883,8.26874017,3703.1,3703.0,0.001]